[Event "Venerd-dì-rapid!"]
[Site "Chess.com"]
[Date "2020.04.17"]
[Round "2"]
[White "bellapero"]
[Black "BAKR1980"]
[Result "1-0"]
[WhiteElo "1365"]
[BlackElo "1454"]
[TimeControl "720+3"]
[EndTime "6:47:38 PDT"]
[Termination "bellapero ha vinto per scaccomatto"]

1. e4 {[%clk 0:12:02.9]} 1... e5 {[%clk 0:12:00.4]} 2. Nf3 {[%clk 0:12:01.8]}
2... Nc6 {[%clk 0:11:58.5]} 3. Nc3 {[%clk 0:12:01.7]} 3... Bc5 {[%clk
0:11:57.5]} 4. Nxe5 {[%clk 0:12:01.8]} 4... Bxf2+ {[%clk 0:11:39.8]} 5. Kxf2
{[%clk 0:11:56.1]} 5... Nxe5 {[%clk 0:11:41.2]} 6. d4 {[%clk 0:11:54.1]} 6...
Ng6 {[%clk 0:11:42.6]} 7. Qf3 {[%clk 0:11:40]} 7... N8e7 {[%clk 0:11:24.1]} 8.
Bd3 {[%clk 0:11:26.7]} 8... O-O {[%clk 0:11:25]} 9. h4 {[%clk 0:11:08.2]} 9...
f5 {[%clk 0:10:58.2]} 10. Bc4+ {[%clk 0:10:43]} 10... Kh8 {[%clk 0:10:38.4]} 11.
e5 {[%clk 0:10:28.9]} 11... Nc6 {[%clk 0:09:45.8]} 12. Bg5 {[%clk 0:09:45.9]}
12... Qe8 {[%clk 0:09:22]} 13. h5 {[%clk 0:08:57.4]} 13... Ngxe5 {[%clk
0:09:00.2]} 14. dxe5 {[%clk 0:08:54.4]} 14... Nxe5 {[%clk 0:09:00.9]} 15. Qd5
{[%clk 0:08:12.2]} 15... c6 {[%clk 0:08:43.9]} 16. Qd4 {[%clk 0:07:56.3]} 16...
d5 {[%clk 0:08:25]} 17. Rae1 {[%clk 0:07:39.4]} 17... Ng4+ {[%clk 0:08:21.1]}
18. Kf1 {[%clk 0:07:29.9]} 18... Qf7 {[%clk 0:07:48]} 19. Re7 {[%clk 0:07:07.4]}
19... Qg8 {[%clk 0:07:47.8]} 20. h6 {[%clk 0:06:52.2]} 20... Rf7 {[%clk
0:06:56.8]} 21. hxg7+ {[%clk 0:05:51.6]} 21... Rxg7 {[%clk 0:06:57.6]} 22. Bxd5
{[%clk 0:05:46.9]} 22... cxd5 {[%clk 0:06:52.9]} 23. Nxd5 {[%clk 0:05:42.5]}
23... Be6 {[%clk 0:06:08.6]} 24. Nf6 {[%clk 0:05:04.3]} 24... Rd8 {[%clk
0:04:41]} 25. Qxd8 {[%clk 0:03:20.8]} 25... Qxd8 {[%clk 0:04:38]} 26. Rxh7+
{[%clk 0:03:15.3]} 26... Rxh7 {[%clk 0:04:24]} 27. Rxh7# {[%clk 0:03:15.5]} 1-0

[Event "Venerd-dì-rapid!"]
[Site "Chess.com"]
[Date "2020.04.17"]
[Round "2"]
[White "sergiodone"]
[Black "MarcoCiva"]
[Result "1/2-1/2"]
[WhiteElo "1303"]
[BlackElo "1621"]
[TimeControl "720+3"]
[EndTime "6:51:40 PDT"]
[Termination "Partita patta per ripetizione di mosse"]

1. e4 {[%clk 0:11:53.7]} 1... e5 {[%clk 0:12:00.5]} 2. d4 {[%clk 0:11:53.9]}
2... exd4 {[%clk 0:12:00.9]} 3. Nf3 {[%clk 0:11:44.5]} 3... Nc6 {[%clk
0:12:00.2]} 4. Bc4 {[%clk 0:11:44.9]} 4... Bb4+ {[%clk 0:11:55]} 5. c3 {[%clk
0:11:45.6]} 5... dxc3 {[%clk 0:11:54.2]} 6. bxc3 {[%clk 0:11:45.6]} 6... Bc5
{[%clk 0:11:52]} 7. O-O {[%clk 0:11:41.7]} 7... d6 {[%clk 0:11:53.1]} 8. h3
{[%clk 0:11:39.5]} 8... Nge7 {[%clk 0:11:50.2]} 9. Bg5 {[%clk 0:11:32.7]} 9...
O-O {[%clk 0:11:50.3]} 10. Nbd2 {[%clk 0:11:27.5]} 10... h6 {[%clk 0:11:49.5]}
11. Bh4 {[%clk 0:11:27.3]} 11... Bd7 {[%clk 0:11:36.5]} 12. Nb3 {[%clk
0:11:19.2]} 12... Bb6 {[%clk 0:11:27.9]} 13. Rb1 {[%clk 0:11:06.9]} 13... Qc8
{[%clk 0:11:27.9]} 14. Kh2 {[%clk 0:11:00.1]} 14... Ng6 {[%clk 0:11:23.1]} 15.
Bg3 {[%clk 0:11:00.1]} 15... Nge5 {[%clk 0:11:19.9]} 16. Nxe5 {[%clk 0:10:58.5]}
16... Nxe5 {[%clk 0:11:14.8]} 17. Bxe5 {[%clk 0:10:47.7]} 17... dxe5 {[%clk
0:11:14.4]} 18. Qf3 {[%clk 0:10:41.2]} 18... Be6 {[%clk 0:10:41]} 19. Bd3 {[%clk
0:10:12.3]} 19... c5 {[%clk 0:10:31.1]} 20. Bc2 {[%clk 0:10:02.2]} 20... c4
{[%clk 0:10:28.7]} 21. Nc1 {[%clk 0:09:58.1]} 21... f5 {[%clk 0:10:13.6]} 22.
exf5 {[%clk 0:09:44.8]} 22... Bxf5 {[%clk 0:10:13.8]} 23. Bxf5 {[%clk
0:09:17.7]} 23... Rxf5 {[%clk 0:10:12.7]} 24. Qd5+ {[%clk 0:09:18.6]} 24... Kh8
{[%clk 0:10:07.4]} 25. Ne2 {[%clk 0:09:18.9]} 25... Qc7 {[%clk 0:09:58.2]} 26.
Kh1 {[%clk 0:08:45.2]} 26... Rd8 {[%clk 0:09:33.2]} 27. Qe6 {[%clk 0:08:42.1]}
27... Rdf8 {[%clk 0:09:25.1]} 28. Ng3 {[%clk 0:08:12.9]} 28... Rxf2 {[%clk
0:09:18.8]} 29. Rxf2 {[%clk 0:08:07.8]} 29... Rxf2 {[%clk 0:09:12.1]} 30. Qe8+
{[%clk 0:08:07.5]} 30... Kh7 {[%clk 0:09:11.9]} 31. Ne4 {[%clk 0:07:49.3]} 31...
Rxa2 {[%clk 0:08:34.2]} 32. Qh5 {[%clk 0:07:40.1]} 32... Qd7 {[%clk 0:07:56.1]}
33. Rf1 {[%clk 0:07:23.6]} 33... Bd8 {[%clk 0:07:24.2]} 34. Qxe5 {[%clk
0:06:32.4]} 34... Be7 {[%clk 0:05:48.2]} 35. Ng3 {[%clk 0:04:27.7]} 35... Bf6
{[%clk 0:05:25]} 36. Qe4+ {[%clk 0:04:18.6]} 36... Kh8 {[%clk 0:04:36.7]} 37.
Qxc4 {[%clk 0:04:10.1]} 37... Rc2 {[%clk 0:04:09.8]} 38. Nh5 {[%clk 0:03:56.3]}
38... Rxc3 {[%clk 0:03:12.1]} 39. Nxf6 {[%clk 0:02:48.4]} 39... Rxh3+ {[%clk
0:03:12.4]} 40. gxh3 {[%clk 0:02:35.2]} 40... Qxh3+ {[%clk 0:03:13.4]} 41. Kg1
{[%clk 0:02:34.9]} 41... Qg3+ {[%clk 0:03:12]} 42. Kh1 {[%clk 0:02:36.3]} 42...
Qh3+ {[%clk 0:03:04]} 43. Kg1 {[%clk 0:02:36.1]} 43... Qg3+ {[%clk 0:02:51.4]}
44. Kh1 {[%clk 0:02:37]} 44... Qh3+ {[%clk 0:02:54.3]} 1/2-1/2

[Event "Venerd-dì-rapid!"]
[Site "Chess.com"]
[Date "2020.04.17"]
[Round "2"]
[White "giulioscaglione"]
[Black "OMatteoWuO"]
[Result "0-1"]
[WhiteElo "1257"]
[BlackElo "1171"]
[TimeControl "720+3"]
[EndTime "6:52:42 PDT"]
[Termination "OMatteoWuO ha vinto per abbandono"]

1. b3 {[%clk 0:12:02.9]} 1... Nf6 {[%clk 0:11:41.5]} 2. Bb2 {[%clk 0:12:03.2]}
2... e6 {[%clk 0:11:34.4]} 3. e3 {[%clk 0:11:58.5]} 3... d5 {[%clk 0:11:25.2]}
4. Ne2 {[%clk 0:11:59.1]} 4... Nc6 {[%clk 0:11:19.2]} 5. Ng3 {[%clk 0:11:59]}
5... Bd6 {[%clk 0:11:13.8]} 6. Bb5 {[%clk 0:11:47.8]} 6... Bd7 {[%clk 0:11:05]}
7. O-O {[%clk 0:11:48.5]} 7... a6 {[%clk 0:11:05.1]} 8. Bxc6 {[%clk 0:11:48.7]}
8... Bxc6 {[%clk 0:11:06.7]} 9. d3 {[%clk 0:11:44.7]} 9... O-O {[%clk
0:10:58.8]} 10. Nd2 {[%clk 0:11:30.6]} 10... e5 {[%clk 0:10:49.5]} 11. Nf5
{[%clk 0:11:17.1]} 11... Bd7 {[%clk 0:10:25.6]} 12. Ng3 {[%clk 0:11:00.9]} 12...
Re8 {[%clk 0:09:48.4]} 13. e4 {[%clk 0:09:51.4]} 13... d4 {[%clk 0:09:35.6]} 14.
Nf3 {[%clk 0:09:21]} 14... Bg4 {[%clk 0:09:20.5]} 15. h3 {[%clk 0:09:18.5]}
15... Bxf3 {[%clk 0:09:21.2]} 16. Qxf3 {[%clk 0:09:19.7]} 16... c5 {[%clk
0:09:17.5]} 17. Bc1 {[%clk 0:09:20.4]} 17... Qd7 {[%clk 0:09:08.7]} 18. Bg5
{[%clk 0:09:19.7]} 18... Be7 {[%clk 0:09:10.1]} 19. Bxf6 {[%clk 0:09:02.8]}
19... Bxf6 {[%clk 0:09:10.8]} 20. Nh5 {[%clk 0:08:39.2]} 20... Bg5 {[%clk
0:08:27.2]} 21. Ng3 {[%clk 0:06:50.1]} 21... b5 {[%clk 0:08:04.1]} 22. Qf5
{[%clk 0:06:36]} 22... Qxf5 {[%clk 0:07:50.6]} 23. Nxf5 {[%clk 0:06:37.3]} 23...
Re6 {[%clk 0:07:27]} 24. Ng3 {[%clk 0:05:33.6]} 24... Rc8 {[%clk 0:07:24.4]} 25.
Ne2 {[%clk 0:05:27]} 25... c4 {[%clk 0:07:17.3]} 26. bxc4 {[%clk 0:05:09.3]}
26... bxc4 {[%clk 0:07:16.4]} 27. f4 {[%clk 0:05:08.8]} 27... cxd3 {[%clk
0:07:03.5]} 28. cxd3 {[%clk 0:05:04.9]} 28... Bh6 {[%clk 0:06:34.4]} 29. fxe5
{[%clk 0:04:27.4]} 29... Be3+ {[%clk 0:06:33.8]} 30. Kh1 {[%clk 0:04:24.5]}
30... Rxe5 {[%clk 0:06:34.7]} 31. Rab1 {[%clk 0:03:16.8]} 31... h6 {[%clk
0:06:32.1]} 32. Rf5 {[%clk 0:03:01.1]} 32... Rxf5 {[%clk 0:06:13.8]} 33. exf5
{[%clk 0:03:02.4]} 33... Rc2 {[%clk 0:06:07.6]} 34. Ng3 {[%clk 0:02:08.7]} 34...
Rxa2 {[%clk 0:05:58.8]} 35. Ne4 {[%clk 0:01:56.5]} 35... a5 {[%clk 0:05:47.5]}
36. f6 {[%clk 0:01:51.9]} 36... g5 {[%clk 0:05:21.8]} 37. Nd6 {[%clk 0:01:07.5]}
37... Rf2 {[%clk 0:04:38.5]} 38. Rb8+ {[%clk 0:01:07.8]} 38... Kh7 {[%clk
0:04:38.4]} 39. Nxf7 {[%clk 0:00:44.9]} 39... Rf1+ {[%clk 0:04:35.8]} 40. Kh2
{[%clk 0:00:44.8]} 40... Bf4+ {[%clk 0:04:24.9]} 41. g3 {[%clk 0:00:45.2]} 41...
Bxb8 {[%clk 0:04:19.7]} 42. h4 {[%clk 0:00:41.8]} 42... gxh4 {[%clk 0:04:14.9]}
0-1

[Event "Venerd-dì-rapid!"]
[Site "Chess.com"]
[Date "2020.04.17"]
[Round "3"]
[White "sirmale49"]
[Black "markk000"]
[Result "0-1"]
[WhiteElo "1351"]
[BlackElo "1571"]
[TimeControl "720+3"]
[EndTime "7:03:29 PDT"]
[Termination "markk000 ha vinto per abbandono"]

1. e4 {[%clk 0:12:00]} 1... c5 {[%clk 0:11:58.7]} 2. f4 {[%clk 0:11:56.3]} 2...
Nc6 {[%clk 0:11:47.9]} 3. Nf3 {[%clk 0:11:55.6]} 3... d6 {[%clk 0:11:47.7]} 4.
Bb5 {[%clk 0:11:54.6]} 4... Bd7 {[%clk 0:11:03.2]} 5. O-O {[%clk 0:11:51.2]}
5... g6 {[%clk 0:10:57.8]} 6. Nc3 {[%clk 0:11:46.2]} 6... Bg7 {[%clk 0:10:49.4]}
7. d3 {[%clk 0:11:07]} 7... Nf6 {[%clk 0:10:42.3]} 8. Nd5 {[%clk 0:10:42.1]}
8... Nxd5 {[%clk 0:10:34.7]} 9. exd5 {[%clk 0:10:42.7]} 9... Nb4 {[%clk
0:10:28.6]} 10. Bxd7+ {[%clk 0:10:37.6]} 10... Qxd7 {[%clk 0:10:23.9]} 11. a3
{[%clk 0:10:38.3]} 11... Nxd5 {[%clk 0:10:15.8]} 12. c4 {[%clk 0:10:39.7]} 12...
Nc7 {[%clk 0:10:09.8]} 13. Rb1 {[%clk 0:10:37.1]} 13... a5 {[%clk 0:10:01.5]}
14. b3 {[%clk 0:10:33.3]} 14... O-O {[%clk 0:09:54.3]} 15. Qe1 {[%clk
0:10:14.6]} 15... e5 {[%clk 0:09:47.7]} 16. Qh4 {[%clk 0:10:01.1]} 16... f6
{[%clk 0:09:33.6]} 17. fxe5 {[%clk 0:09:42.6]} 17... dxe5 {[%clk 0:09:26.8]} 18.
Bh6 {[%clk 0:09:43.5]} 18... g5 {[%clk 0:09:16.7]} 19. Qh5 {[%clk 0:09:22.3]}
19... Ne6 {[%clk 0:07:44.6]} 20. Qg6 {[%clk 0:09:25.2]} 20... hxg6 {[%clk
0:07:12.4]} 0-1

[Event "Venerd-dì-rapid!"]
[Site "Chess.com"]
[Date "2020.04.17"]
[Round "3"]
[White "MarcoCiva"]
[Black "karab89"]
[Result "1-0"]
[WhiteElo "1643"]
[BlackElo "1311"]
[TimeControl "720+3"]
[EndTime "7:05:45 PDT"]
[Termination "MarcoCiva ha vinto per scaccomatto"]

1. d4 {[%clk 0:12:02.9]} 1... e6 {[%clk 0:12:00.8]} 2. c4 {[%clk 0:12:03.6]}
2... d5 {[%clk 0:11:50.7]} 3. Nc3 {[%clk 0:12:00]} 3... c5 {[%clk 0:11:51.8]} 4.
e3 {[%clk 0:12:01]} 4... Qb6 {[%clk 0:11:51.6]} 5. Nf3 {[%clk 0:11:43.6]} 5...
Nc6 {[%clk 0:11:38.4]} 6. Na4 {[%clk 0:11:37.9]} 6... Qc7 {[%clk 0:10:29.5]} 7.
dxc5 {[%clk 0:11:24.8]} 7... dxc4 {[%clk 0:09:55.3]} 8. Bxc4 {[%clk 0:11:20.4]}
8... Ne5 {[%clk 0:09:55.7]} 9. Bb5+ {[%clk 0:11:08.7]} 9... Nd7 {[%clk
0:09:43.8]} 10. Qd4 {[%clk 0:10:46.4]} 10... a6 {[%clk 0:09:04.9]} 11. Bxd7+
{[%clk 0:10:39.2]} 11... Bxd7 {[%clk 0:09:06.1]} 12. O-O {[%clk 0:10:36.6]}
12... Bxc5 {[%clk 0:09:05]} 13. Nxc5 {[%clk 0:10:34]} 13... O-O-O {[%clk
0:08:58.2]} 14. Qxg7 {[%clk 0:10:05.3]} 14... Qxc5 {[%clk 0:07:34.3]} 15. Qxh8
{[%clk 0:09:59.6]} 15... Bb5 {[%clk 0:07:32.1]} 16. Bd2 {[%clk 0:09:26]} 16...
Bxf1 {[%clk 0:07:06.9]} 17. Rc1 {[%clk 0:09:26]} 17... Bc4 {[%clk 0:07:08.1]}
18. b3 {[%clk 0:09:26.4]} 18... b5 {[%clk 0:07:09.1]} 19. bxc4 {[%clk
0:09:27.4]} 19... bxc4 {[%clk 0:07:10.7]} 20. Qxh7 {[%clk 0:09:15.5]} 20... Nf6
{[%clk 0:07:00.6]} 21. Qxf7 {[%clk 0:09:09.8]} 21... Nd7 {[%clk 0:06:30.7]} 22.
Qxe6 {[%clk 0:09:08.6]} 22... Kb7 {[%clk 0:06:20.3]} 23. Rb1+ {[%clk 0:08:48.2]}
23... Ka7 {[%clk 0:06:17.5]} 24. Nd4 {[%clk 0:08:30.9]} 24... Nb6 {[%clk
0:06:18.3]} 25. Nc6+ {[%clk 0:08:22]} 25... Ka8 {[%clk 0:06:11.8]} 26. Nxd8
{[%clk 0:08:22]} 26... Qc8 {[%clk 0:06:09]} 27. Qxb6 {[%clk 0:08:16.5]} 27...
Qb7 {[%clk 0:06:09.4]} 28. Qxb7# {[%clk 0:08:13.6]} 1-0

[Event "Venerd-dì-rapid!"]
[Site "Chess.com"]
[Date "2020.04.17"]
[Round "3"]
[White "Ollarov"]
[Black "bellapero"]
[Result "1-0"]
[WhiteElo "1973"]
[BlackElo "1342"]
[TimeControl "720+3"]
[EndTime "7:12:19 PDT"]
[Termination "Ollarov ha vinto per abbandono"]

1. e4 {[%clk 0:11:55.9]} 1... c5 {[%clk 0:11:58.1]} 2. a3 {[%clk 0:11:55.7]}
2... d6 {[%clk 0:11:56.2]} 3. b4 {[%clk 0:11:57]} 3... cxb4 {[%clk 0:11:28.1]}
4. axb4 {[%clk 0:11:57.4]} 4... Nc6 {[%clk 0:11:25.1]} 5. b5 {[%clk 0:11:38.3]}
5... Ne5 {[%clk 0:10:53.2]} 6. d4 {[%clk 0:11:27.1]} 6... Nd7 {[%clk 0:10:46.2]}
7. Nf3 {[%clk 0:11:23.3]} 7... Ngf6 {[%clk 0:10:28.6]} 8. e5 {[%clk 0:11:22.3]}
8... dxe5 {[%clk 0:10:26.4]} 9. dxe5 {[%clk 0:11:20.4]} 9... Ne4 {[%clk
0:10:01.7]} 10. e6 {[%clk 0:11:20]} 10... fxe6 {[%clk 0:10:00]} 11. Bb2 {[%clk
0:11:22.1]} 11... Nef6 {[%clk 0:09:25.8]} 12. Bc4 {[%clk 0:10:32.3]} 12... g6
{[%clk 0:08:59.4]} 13. O-O {[%clk 0:10:25.6]} 13... Bg7 {[%clk 0:08:54.5]} 14.
Ng5 {[%clk 0:10:20.3]} 14... Nh5 {[%clk 0:08:10.7]} 15. Nxe6 {[%clk 0:10:08.1]}
15... Qb6 {[%clk 0:07:50.6]} 16. Nxg7+ {[%clk 0:10:03.6]} 16... Nxg7 {[%clk
0:07:50.9]} 17. Bxg7 {[%clk 0:10:04.5]} 17... Rf8 {[%clk 0:07:31.1]} 18. Bxf8
{[%clk 0:09:56.5]} 18... Nxf8 {[%clk 0:07:29.5]} 19. Qf3 {[%clk 0:09:55.9]}
19... Be6 {[%clk 0:07:17.9]} 20. Bxe6 {[%clk 0:09:54.8]} 20... Nxe6 {[%clk
0:07:15.5]} 21. Nc3 {[%clk 0:09:55.7]} 21... Nd4 {[%clk 0:06:49.6]} 22. Qe3
{[%clk 0:09:46.5]} 22... Rd8 {[%clk 0:06:13.6]} 23. Nd5 {[%clk 0:09:21.5]} 23...
Rxd5 {[%clk 0:06:06.6]} 24. c3 {[%clk 0:09:22.3]} 24... Nc2 {[%clk 0:05:50.8]}
25. Qxb6 {[%clk 0:09:20]} 25... axb6 {[%clk 0:05:41.7]} 26. Ra8+ {[%clk
0:09:20.8]} 26... Kf7 {[%clk 0:05:25.4]} 27. c4 {[%clk 0:09:22.5]} 27... Rd4
{[%clk 0:05:21.9]} 28. Rc8 {[%clk 0:09:23.2]} 28... Na3 {[%clk 0:05:00.4]} 29.
Rc1 {[%clk 0:09:20.5]} 29... Rd2 {[%clk 0:04:35.5]} 30. f3 {[%clk 0:09:18.1]}
30... h5 {[%clk 0:03:55.4]} 31. Rc7 {[%clk 0:08:48.4]} 31... Nc2 {[%clk
0:03:43.1]} 32. Rxb7 {[%clk 0:08:42.4]} 32... Ne3 {[%clk 0:03:33.1]} 33. Re1
{[%clk 0:08:42.5]} 33... Rxg2+ {[%clk 0:03:10.5]} 34. Kh1 {[%clk 0:08:39.8]}
34... Rc2 {[%clk 0:02:49.9]} 35. Rxe3 {[%clk 0:08:40.9]} 35... Rxc4 {[%clk
0:02:45.1]} 36. Rbxe7+ {[%clk 0:08:35.9]} 36... Kf6 {[%clk 0:02:37.6]} 37. R7e6+
{[%clk 0:08:33.2]} 37... Kg5 {[%clk 0:02:32.5]} 38. Rxb6 {[%clk 0:08:33.8]}
38... Rc1+ {[%clk 0:02:23.1]} 39. Kg2 {[%clk 0:08:35.3]} 39... Rc2+ {[%clk
0:02:24]} 40. Kh3 {[%clk 0:08:37.2]} 40... Rc5 {[%clk 0:02:10.5]} 41. Rb8 {[%clk
0:08:28.2]} 41... Rc4 {[%clk 0:02:02.4]} 42. b6 {[%clk 0:08:27.8]} 42... Rh4+
{[%clk 0:01:59.2]} 43. Kg2 {[%clk 0:08:28.8]} 43... Kf4 {[%clk 0:01:58.6]} 44.
Re4+ {[%clk 0:08:29.7]} 44... Kg5 {[%clk 0:01:57]} 45. Rxh4 {[%clk 0:08:31.3]}
45... Kxh4 {[%clk 0:01:58.8]} 46. b7 {[%clk 0:08:33.4]} 46... g5 {[%clk
0:01:58.6]} 47. Kf2 {[%clk 0:08:34.2]} 47... g4 {[%clk 0:01:54.8]} 48. fxg4
{[%clk 0:08:35.2]} 48... Kxg4 {[%clk 0:01:55]} 49. Rc8 {[%clk 0:08:34]} 49... h4
{[%clk 0:01:56.3]} 50. b8=Q {[%clk 0:08:32.9]} 1-0

[Event "Venerd-dì-rapid!"]
[Site "Chess.com"]
[Date "2020.04.17"]
[Round "3"]
[White "OMatteoWuO"]
[Black "donaldnecesito"]
[Result "0-1"]
[WhiteElo "1169"]
[BlackElo "1724"]
[TimeControl "720+3"]
[EndTime "7:17:40 PDT"]
[Termination "donaldnecesito ha vinto per abbandono"]

1. d4 {[%clk 0:12:00.1]} 1... d5 {[%clk 0:12:00.3]} 2. c4 {[%clk 0:12:01]} 2...
e6 {[%clk 0:12:01.3]} 3. Nc3 {[%clk 0:12:01.2]} 3... Nf6 {[%clk 0:12:02.2]} 4.
Nf3 {[%clk 0:12:02.2]} 4... Bb4 {[%clk 0:12:02.9]} 5. Bd2 {[%clk 0:12:03]} 5...
O-O {[%clk 0:12:02.2]} 6. e3 {[%clk 0:12:01.5]} 6... c5 {[%clk 0:11:54.7]} 7.
dxc5 {[%clk 0:11:32.4]} 7... dxc4 {[%clk 0:11:45.8]} 8. Bxc4 {[%clk 0:11:25.1]}
8... Qc7 {[%clk 0:11:44.5]} 9. Rc1 {[%clk 0:11:08.7]} 9... Qxc5 {[%clk
0:11:26.3]} 10. Na4 {[%clk 0:10:54.8]} 10... Bxd2+ {[%clk 0:11:21.5]} 11. Qxd2
{[%clk 0:10:55.3]} 11... Qh5 {[%clk 0:11:13.8]} 12. Nc3 {[%clk 0:10:21.4]} 12...
a6 {[%clk 0:11:06.2]} 13. O-O {[%clk 0:10:00.3]} 13... b5 {[%clk 0:11:07.2]} 14.
Be2 {[%clk 0:09:52.7]} 14... Bb7 {[%clk 0:11:01.2]} 15. Nd4 {[%clk 0:09:04.6]}
15... Qg6 {[%clk 0:10:55.2]} 16. Bf3 {[%clk 0:09:04.3]} 16... Bxf3 {[%clk
0:10:51.5]} 17. Nxf3 {[%clk 0:09:04.2]} 17... Nbd7 {[%clk 0:10:42.5]} 18. e4
{[%clk 0:08:39.1]} 18... b4 {[%clk 0:09:40.4]} 19. Ne2 {[%clk 0:07:01.3]} 19...
a5 {[%clk 0:09:26.5]} 20. e5 {[%clk 0:06:41.7]} 20... Nd5 {[%clk 0:09:26.2]} 21.
Nf4 {[%clk 0:06:21.9]} 21... Nxf4 {[%clk 0:09:26.4]} 22. Qxf4 {[%clk 0:06:21.6]}
22... Nb6 {[%clk 0:09:08.2]} 23. Rfd1 {[%clk 0:05:35.3]} 23... Nd5 {[%clk
0:09:05.5]} 24. Qg3 {[%clk 0:04:39]} 24... Qe4 {[%clk 0:06:38.6]} 25. Rd4 {[%clk
0:03:49.7]} 25... Qe2 {[%clk 0:06:03.2]} 26. Rd2 {[%clk 0:02:54.7]} 26... Qe4
{[%clk 0:04:41.9]} 27. Ng5 {[%clk 0:02:20.4]} 27... Rac8 {[%clk 0:04:19.9]} 28.
Rcd1 {[%clk 0:02:00.3]} 28... Qf5 {[%clk 0:03:50.1]} 29. Qh4 {[%clk 0:01:23.7]}
29... h6 {[%clk 0:03:36.1]} 30. Nf3 {[%clk 0:00:54.5]} 30... Rc2 {[%clk
0:03:03.6]} 31. h3 {[%clk 0:00:31.3]} 31... Rxd2 {[%clk 0:02:56.5]} 32. Rxd2
{[%clk 0:00:30.3]} 32... Rc8 {[%clk 0:02:48.6]} 33. g4 {[%clk 0:00:29.2]} 33...
Qxf3 {[%clk 0:02:47.5]} 0-1

[Event "Venerd-dì-rapid!"]
[Site "Chess.com"]
[Date "2020.04.17"]
[Round "3"]
[White "BAKR1980"]
[Black "sergiodone"]
[Result "1-0"]
[WhiteElo "1498"]
[BlackElo "1298"]
[TimeControl "720+3"]
[EndTime "7:19:31 PDT"]
[Termination "BAKR1980 ha vinto per tempo"]

1. e4 {[%clk 0:12:02.9]} 1... c5 {[%clk 0:11:51.4]} 2. Nf3 {[%clk 0:12:03.9]}
2... d6 {[%clk 0:11:52.9]} 3. d4 {[%clk 0:12:05.3]} 3... cxd4 {[%clk 0:11:52.9]}
4. Nxd4 {[%clk 0:12:07.1]} 4... e6 {[%clk 0:11:53.8]} 5. Nc3 {[%clk 0:12:08.7]}
5... Be7 {[%clk 0:11:55.2]} 6. Bc4 {[%clk 0:12:10.1]} 6... a6 {[%clk 0:11:53.8]}
7. Be3 {[%clk 0:12:11.3]} 7... Qc7 {[%clk 0:11:54.9]} 8. Qe2 {[%clk 0:12:03.2]}
8... b5 {[%clk 0:11:47.7]} 9. Bb3 {[%clk 0:11:34.5]} 9... Nf6 {[%clk 0:11:44.6]}
10. a3 {[%clk 0:11:30.1]} 10... Bd7 {[%clk 0:11:38.3]} 11. f4 {[%clk 0:11:18.5]}
11... Nc6 {[%clk 0:11:39]} 12. O-O {[%clk 0:10:04.3]} 12... h5 {[%clk
0:11:39.1]} 13. f5 {[%clk 0:09:54.5]} 13... Ng4 {[%clk 0:11:38.7]} 14. fxe6
{[%clk 0:09:40.7]} 14... fxe6 {[%clk 0:11:29.6]} 15. Nxe6 {[%clk 0:09:32]} 15...
Bxe6 {[%clk 0:11:26.1]} 16. Bxe6 {[%clk 0:09:32.7]} 16... Nce5 {[%clk
0:11:18.8]} 17. Nd5 {[%clk 0:09:23.6]} 17... Qb7 {[%clk 0:11:09]} 18. Bd4 {[%clk
0:08:39.7]} 18... Bg5 {[%clk 0:10:33.3]} 19. c3 {[%clk 0:07:49.5]} 19... Qc6
{[%clk 0:10:18.8]} 20. Rf5 {[%clk 0:07:42.2]} 20... Bd8 {[%clk 0:09:25.6]} 21.
h3 {[%clk 0:07:36.7]} 21... Be7 {[%clk 0:09:13.5]} 22. hxg4 {[%clk 0:07:15.9]}
22... hxg4 {[%clk 0:09:13.7]} 23. Bxe5 {[%clk 0:06:51.6]} 23... dxe5 {[%clk
0:09:08]} 24. Bf7+ {[%clk 0:05:52]} 24... Kd8 {[%clk 0:08:46]} 25. Rh5 {[%clk
0:05:40.2]} 25... Rxh5 {[%clk 0:08:27.5]} 26. Bxh5 {[%clk 0:05:40.9]} 26... Bc5+
{[%clk 0:08:25.1]} 27. Kf1 {[%clk 0:05:32.8]} 27... g3 {[%clk 0:07:41.9]} 28.
Rd1 {[%clk 0:05:21.3]} 28... Kc8 {[%clk 0:07:41.5]} 29. Qg4+ {[%clk 0:05:20]}
29... Kb8 {[%clk 0:07:29]} 30. Qxg3 {[%clk 0:05:14.8]} 30... Qe6 {[%clk
0:06:41.1]} 31. Bg4 {[%clk 0:04:54.8]} 31... Qf7+ {[%clk 0:06:18.7]} 32. Qf3
{[%clk 0:04:44.1]} 32... Qg6 {[%clk 0:05:08.3]} 33. Qf5 {[%clk 0:04:24.2]} 33...
Qxf5+ {[%clk 0:04:52.6]} 34. Bxf5 {[%clk 0:04:15.5]} 34... Ka7 {[%clk
0:04:51.5]} 35. Nb4 {[%clk 0:04:03.5]} 35... Rh8 {[%clk 0:04:19.9]} 36. Rd7+
{[%clk 0:04:02.3]} 36... Kb6 {[%clk 0:02:52.5]} 37. Rxg7 {[%clk 0:03:58.3]}
37... Bxb4 {[%clk 0:02:09]} 38. axb4 {[%clk 0:03:57.4]} 38... Rh1+ {[%clk
0:01:25.8]} 39. Ke2 {[%clk 0:03:58.1]} 39... Rb1 {[%clk 0:01:26.6]} 40. Rg6+
{[%clk 0:03:58.2]} 40... Ka7 {[%clk 0:01:25.4]} 41. g4 {[%clk 0:03:55.3]} 41...
Rxb2+ {[%clk 0:01:26.9]} 42. Kd3 {[%clk 0:03:56.5]} 42... Rg2 {[%clk 0:01:13.7]}
43. Re6 {[%clk 0:03:56.7]} 43... Rg3+ {[%clk 0:01:10.3]} 44. Kc2 {[%clk
0:03:57.6]} 44... a5 {[%clk 0:01:01]} 45. bxa5 {[%clk 0:03:58]} 45... Rg1 {[%clk
0:00:36.7]} 46. Rxe5 {[%clk 0:03:56.1]} 46... Ka6 {[%clk 0:00:37.8]} 47. Bd7
{[%clk 0:03:53]} 47... Kxa5 {[%clk 0:00:33.8]} 48. Rxb5+ {[%clk 0:03:53.6]}
48... Ka6 {[%clk 0:00:29.4]} 49. Rb1 {[%clk 0:03:53.4]} 49... Rg2+ {[%clk
0:00:26.8]} 50. Kd3 {[%clk 0:03:55]} 50... Ka7 {[%clk 0:00:18.2]} 51. e5 {[%clk
0:03:55.4]} 51... Rg3+ {[%clk 0:00:16.9]} 52. Kd4 {[%clk 0:03:55.5]} 52... Rg2
{[%clk 0:00:06.6]} 53. Ra1+ {[%clk 0:03:54.2]} 53... Kb6 {[%clk 0:00:06.1]} 54.
e6 {[%clk 0:03:52.6]} 54... Kc7 {[%clk 0:00:05.7]} 55. Kc5 {[%clk 0:03:36.5]}
1-0